[Event "XX Gran Hotel Bali-A 2023"]
[Site "Benidorm"]
[Date "2023.12.08"]
[Round "9.5"]
[White "Campora, Daniel H."]
[Black "Vignesh B"]
[Result "1-0"]
[ECO "C96"]
[WhiteElo "2354"]
[BlackElo "2179"]
[Annotator "RC"]
[PlyCount "101"]
[EventDate "2023.12.02"]
[EventType "swiss"]
[EventCountry "ESP"]
[SourceTitle "playchess.com"]
[Source "ChessBase"]
[SourceQuality "1"]
[TimeControl "5400+30"]

1. e4 {[%emt 0:00:03]} e5 {[%emt 0:02:36]} 2. Nf3 {[%emt 0:00:25]} Nc6 {[%emt 0:00:05]} 3. Bb5 {[%emt 0:00:24]} a6 {[%emt 0:00:07]} 4. Ba4 {[%emt 0:00:11]} Nf6 {[%emt 0:00:09]} 5. O-O {[%emt 0:01:30]} Be7 {[%emt 0:02:21]} 6. Re1 {[%emt 0:00:29]} b5 {[%emt 0:00:14]} 7. Bb3 {[%emt 0:00:08]} d6 {[%emt 0:00:14]} 8. c3 {[%emt 0:00:23]} O-O {[%emt 0:01:32]} 9. h3 {[%emt 0:01:31]} Na5 {[%emt 0:00:05]} 10. Bc2 {[%emt 0:00:05]} c5 {[%emt 0:00:05]} 11. d4 {[%emt 0:00:28]} cxd4 {[%emt 0:00:33]} 12. cxd4 {[%emt 0:00:11]} Qc7 {[%emt 0:03:01]} 13. Nc3 {[%emt 0:05:54]} Re8 {[%emt 0:12:16]} 14. Bg5 {[%emt 0:04:26]} h6 {[%emt 0:05:19]} 15. Bxf6 {[%emt 0:00:43]} Bxf6 {[%emt 0:00:08]} 16. a4 {[%emt 0:03:51]} Be6 {[%emt 0:16:20]} 17. axb5 {[%emt 0:05:41]} axb5 {[%emt 0:17:21]} 18. d5 {[%emt 0:14:20]} Bd7 {[%emt 0:00:17]} 19. Qe2 {[%emt 0:03:46]} b4 {[%emt 0:12:38]} 20. Nd1 {[%emt 0:01:31]} b3 {[%emt 0:03:30]} 21. Bd3 {[%emt 0:00:27]} Nb7 {[%emt 0:00:24]} 22. Nc3 {[%emt 0:00:39]} Nc5 {[%emt 0:00:11]} 23. Bb5 {[%emt 0:00:22]} Reb8 {[%emt 0:01:04]} 24. Nd2 {[%emt 0:05:10]} Rxa1 {[%emt 0:07:38]} 25. Rxa1 {[%emt 0:00:06]} Bg5 {[%emt 0:00:29]} 26. Nf3 {[%emt 0:08:14]} Bd8 {[%emt 0:01:19]} 27. Nd2 {[%emt 0:01:48]} Bg5 {[%emt 0:02:07]} 28. Nf3 {[%emt 0:00:53]} Bd8 {[%emt 0:00:54]} 29. Nd2 {[%emt 0:00:07]} g6 {[%emt 0:00:38]} 30. Bxd7 {[%emt 0:00:53]} Qxd7 {[%emt 0:00:18]} 31. Qc4 {[%emt 0:04:52]} Bg5 {[%emt 0:00:38]} 32. Nf3 {[%emt 0:00:18]} Bd8 {[%emt 0:01:16]} 33. Nxe5 {[%emt 0:01:13]} dxe5 {[%emt 0:00:02]} 34. Qxc5 {[%emt 0:00:05]} Bb6 {[%emt 0:00:06]} 35. Qc6 {[%emt 0:01:39]} Qd8 {[%emt 0:01:12]} 36. d6 {[%emt 0:07:25]} Bd4 {[%emt 0:06:36]} 37. Nb5 {[%emt 0:05:20]} Rc8 {[%emt 0:02:04]} 38. Qd5 {[%emt 0:01:46]} Qg5 {[%emt 0:01:42]} 39. Rf1 {[%emt 0:06:54]} Rc1 {[%emt 0:01:15]} 40. Nxd4 {[%emt 0:01:25]} Rxf1+ {[%emt 0:00:19]} 41. Kxf1 {[%emt 0:00:04]} Qc1+ {[%emt 0:00:04]} 42. Ke2 {[%emt 0:00:06]} Qxb2+ {[%emt 0:00:03]} 43. Kd3 {[%emt 0:03:47]} Qb1+ {[%emt 0:00:50]} 44. Ke2 {[%emt 0:02:52]} exd4 {[%emt 0:01:32]} 45. d7 {[%emt 0:03:13]} Qc2+ {[%emt 0:00:03]} 46. Kf3 {[%emt 0:00:10]} Qd3+ {[%emt 0:00:42]} 47. Kf4 {[%emt 0:00:43]} Qd2+ {[%emt 0:01:00]} 48. Kg3 {[%emt 0:00:44]} Qc3+ {[%emt 0:00:05]} 49. Kh4 {[%emt 0:01:06]} d3 {[%emt 0:00:10]} 50. d8=Q+ {[%emt 0:00:11]} Kg7 {[%emt 0:00:07]} 51. Qd4+ {[%emt 0:00:09]} 1-0

[Event "XX Gran Hotel Bali-A 2023"]
[Site "Benidorm"]
[Date "2023.12.08"]
[Round "9.6"]
[White "Goluch, Piotr"]
[Black "De La Puerta Cresis, Javier"]
[Result "1-0"]
[ECO "D55"]
[WhiteElo "2312"]
[BlackElo "2177"]
[Annotator "RC"]
[PlyCount "163"]
[EventDate "2023.12.02"]
[EventType "swiss"]
[EventCountry "ESP"]
[SourceTitle "playchess.com"]
[Source "ChessBase"]
[SourceQuality "1"]
[TimeControl "5400+30"]

1. d4 {[%emt 0:00:05]} d5 {[%emt 0:00:05]} 2. c4 {[%emt 0:00:08]} e6 {[%emt 0:00:06]} 3. Nf3 {[%emt 0:00:44]} Nf6 {[%emt 0:00:07]} 4. Nc3 {[%emt 0:03:50]} Be7 {[%emt 0:00:24]} 5. Bg5 {[%emt 0:01:22]} h6 {[%emt 0:00:41]} 6. Bxf6 {[%emt 0:00:38]} Bxf6 {[%emt 0:00:06]} 7. e3 O-O {[%emt 0:02:03]} 8. Bd3 {[%emt 0:02:25]} c6 {[%emt 0:00:55]} 9. O-O {[%emt 0:00:16]} Nd7 {[%emt 0:00:08]} 10. Re1 {[%emt 0:01:27]} dxc4 {[%emt 0:01:36]} 11. Bxc4 {[%emt 0:00:04]} e5 {[%emt 0:00:21]} 12. Bb3 {[%emt 0:22:16]} exd4 {[%emt 0:00:52]} 13. exd4 {[%emt 0:00:03]} Nb6 {[%emt 0:01:24]} 14. Ne5 {[%emt 0:00:12]} Nd5 {[%emt 0:18:55]} 15. Bxd5 {[%emt 0:09:37]} cxd5 {[%emt 0:00:06]} 16. Qb3 {[%emt 0:00:02]} Be6 {[%emt 0:02:18]} 17. Qxb7 {[%emt 0:02:29]} Bxe5 {[%emt 0:10:36]} 18. dxe5 {[%emt 0:03:07]} d4 {[%emt 0:07:29]} 19. Rad1 {[%emt 0:04:04]} Qa5 {[%emt 0:01:07]} 20. Qb5 {[%emt 0:08:12]} Qxb5 {[%emt 0:10:48]} 21. Nxb5 {[%emt 0:00:05]} Bxa2 {[%emt 0:00:35]} 22. Nxd4 {[%emt 0:09:09]} Rab8 {[%emt 0:00:23]} 23. Rd2 {[%emt 0:00:38]} Rb4 {[%emt 0:06:02]} 24. b3 {[%emt 0:05:23]} Rd8 {[%emt 0:07:42]} 25. Red1 {[%emt 0:00:31]} Bb1 {[%emt 0:01:01]} 26. f3 {[%emt 0:00:34]} a5 {[%emt 0:02:31]} 27. Kf2 {[%emt 0:01:02]} a4 {[%emt 0:03:48]} 28. bxa4 {[%emt 0:04:31]} Rxa4 {[%emt 0:00:01]} 29. Nc6 {[%emt 0:00:17]} Rxd2+ {[%emt 0:00:41]} 30. Rxd2 {[%emt 0:00:02]} Ba2 {[%emt 0:02:20]} 31. Nd4 {[%emt 0:04:21]} Bc4 {[%emt 0:02:07]} 32. f4 {[%emt 0:00:38]} g6 {[%emt 0:01:01]} 33. g4 {[%emt 0:02:03]} Ra5 {[%emt 0:02:00]} 34. Rc2 {[%emt 0:03:14]} Ba6 {[%emt 0:03:49]} 35. Rb2 {[%emt 0:05:33]} g5 {[%emt 0:02:23]} 36. fxg5 {[%emt 0:02:34]} Rxe5 {[%emt 0:04:10]} 37. Rb8+ {[%emt 0:02:37]} Kh7 {[%emt 0:00:08]} 38. Rb6 {[%emt 0:00:04]} Bc8 {[%emt 0:02:29]} 39. Rxh6+ {[%emt 0:00:04]} Kg7 {[%emt 0:00:10]} 40. Nf3 {[%emt 0:05:05]} Rxg5 {[%emt 0:01:57]} 41. Rc6 {[%emt 0:00:01]} Bb7 {[%emt 0:01:21]} 42. Nxg5 {[%emt 0:00:02]} Bxc6 {[%emt 0:00:02]} 43. Kg3 {[%emt 0:00:06]} Kg6 {[%emt 0:00:25]} 44. Kf4 {[%emt 0:00:05]} Bd7 {[%emt 0:00:53]} 45. Nf3 {[%emt 0:00:52]} f6 {[%emt 0:00:46]} 46. Nd4 {[%emt 0:00:26]} Ba4 {[%emt 0:01:08]} 47. h4 {[%emt 0:00:06]} Bd7 {[%emt 0:00:54]} 48. h5+ {[%emt 0:00:10]} Kf7 {[%emt 0:00:39]} 49. Nf5 {[%emt 0:00:04]} Ba4 {[%emt 0:00:36]} 50. Nd6+ {[%emt 0:00:33]} Kg7 {[%emt 0:00:22]} 51. Ne4 {[%emt 0:02:48]} Bd1 {[%emt 0:00:41]} 52. Nc5 {[%emt 0:00:17]} Bc2 {[%emt 0:00:52]} 53. Ne6+ {[%emt 0:00:14]} Kf7 {[%emt 0:00:12]} 54. Nd8+ {[%emt 0:00:13]} Kg7 {[%emt 0:00:17]} 55. Ne6+ {[%emt 0:00:04]} Kf7 {[%emt 0:00:07]} 56. Nd4 {[%emt 0:00:01]} Bd1 {[%emt 0:00:08]} 57. Nf5 {[%emt 0:00:05]} Be2 {[%emt 0:00:27]} 58. Nd6+ {[%emt 0:00:01]} Kg7 {[%emt 0:00:18]} 59. Kf5 {[%emt 0:00:02]} Bd3+ {[%emt 0:01:14]} 60. Ke6 {[%emt 0:00:01]} Be2 {[%emt 0:00:33]} 61. Ne8+ {[%emt 0:01:09]} Kh6 {[%emt 0:00:32]} 62. Kf5 {[%emt 0:00:02]} Ba6 {[%emt 0:03:06]} 63. Nxf6 {[%emt 0:03:07]} Bc8+ {[%emt 0:00:19]} 64. Kf4 {[%emt 0:00:05]} Kg7 {[%emt 0:00:09]} 65. Ne4 {[%emt 0:00:27]} Kh6 {[%emt 0:00:08]} 66. Nd6 {[%emt 0:00:29]} Be6 {[%emt 0:00:14]} 67. Nf5+ {[%emt 0:00:05]} Kh7 {[%emt 0:00:07]} 68. Ke5 {[%emt 0:00:20]} Bb3 {[%emt 0:00:39]} 69. Kf4 {[%emt 0:01:42]} Bd1 {[%emt 0:00:10]} 70. Ng3 {[%emt 0:00:25]} Kh6 {[%emt 0:01:56]} 71. Kf5 {[%emt 0:01:09]} Kg7 {[%emt 0:00:34]} 72. g5 {[%emt 0:00:50]} Bc2+ {[%emt 0:00:27]} 73. Ke5 {[%emt 0:00:07]} Bd1 {[%emt 0:00:27]} 74. Nf5+ {[%emt 0:00:21]} Kg8 {[%emt 0:00:35]} 75. h6 {[%emt 0:00:49]} Kh7 {[%emt 0:00:31]} 76. Kf6 {[%emt 0:00:05]} Bh5 {[%emt 0:00:06]} 77. Ng7 {[%emt 0:00:18]} Bg6 {[%emt 0:00:19]} 78. Ne6 {[%emt 0:00:08]} Bc2 {[%emt 0:01:09]} 79. Nf8+ {[%emt 0:00:05]} Kg8 {[%emt 0:00:19]} 80. g6 {[%emt 0:00:05]} Kh8 {[%emt 0:00:32]} 81. g7+ {[%emt 0:00:16]} Kg8 {[%emt 0:00:04]} 82. h7+ {[%emt 0:00:03]} 1-0

[Event "XX Gran Hotel Bali-A 2023"]
[Site "Benidorm"]
[Date "2023.12.08"]
[Round "9.7"]
[White "Carrera Perez, Francisco"]
[Black "Moskalenko, Viktor"]
[Result "0-1"]
[ECO "A10"]
[WhiteElo "2237"]
[BlackElo "2427"]
[Annotator "RC"]
[PlyCount "56"]
[EventDate "2023.12.02"]
[EventType "swiss"]
[EventCountry "ESP"]
[SourceTitle "playchess.com"]
[Source "ChessBase"]
[SourceQuality "1"]
[TimeControl "5400+30"]

1. c4 {[%emt 0:00:30]} f5 {[%emt 0:02:04]} 2. g3 {[%emt 0:00:42]} Nf6 {[%emt 0:00:05]} 3. Bg2 {[%emt 0:00:17]} g6 {[%emt 0:01:42]} 4. Nc3 {[%emt 0:00:47]} Bg7 {[%emt 0:00:36]} 5. d3 {[%emt 0:00:27]} d6 {[%emt 0:01:16]} 6. Bg5 {[%emt 0:03:40]} Nbd7 {[%emt 0:01:46]} 7. Qd2 {[%emt 0:01:16]} h6 {[%emt 0:00:19]} 8. Bxf6 {[%emt 0:00:34]} Nxf6 {[%emt 0:00:05]} 9. e3 {[%emt 0:00:12]} c6 {[%emt 0:00:35]} 10. Nge2 {[%emt 0:00:19]} e5 {[%emt 0:01:00]} 11. O-O {[%emt 0:00:53]} O-O {[%emt 0:00:55]} 12. b4 {[%emt 0:04:47]} d5 {[%emt 0:23:37]} 13. cxd5 {[%emt 0:02:48]} cxd5 {[%emt 0:03:50]} 14. d4 {[%emt 0:00:29]} e4 {[%emt 0:00:10]} 15. Rac1 {[%emt 0:06:05]} g5 {[%emt 0:00:25]} 16. a4 {[%emt 0:02:31]} Be6 {[%emt 0:10:19]} 17. a5 {[%emt 0:08:15]} Ne8 {[%emt 0:14:53]} 18. Nb5 {[%emt 0:12:46]} Qd7 {[%emt 0:02:04]} 19. Nec3 {[%emt 0:01:42]} a6 {[%emt 0:01:32]} 20. Na3 {[%emt 0:00:10]} Nd6 {[%emt 0:00:04]} 21. Rfd1 {[%emt 0:04:35]} f4 {[%emt 0:01:19]} 22. Qc2 {[%emt 0:05:58]} f3 {[%emt 0:11:13]} 23. Bf1 {[%emt 0:02:38]} Bh3 {[%emt 0:00:10]} 24. Kh1 {[%emt 0:07:33]} Bxf1 {[%emt 0:08:10]} 25. Rxf1 {[%emt 0:00:06]} Nf7 {[%emt 0:00:16]} 26. Na4 {[%emt 0:05:58]} h5 {[%emt 0:08:00]} 27. Rg1 {[%emt 0:02:29]} Qh3 {[%emt 0:00:41]} 28. Qd1 {[%emt 0:01:23]} Nh6 {[%emt 0:00:14]} 0-1

[Event "XX Gran Hotel Bali-A 2023"]
[Site "Benidorm"]
[Date "2023.12.08"]
[Round "9.8"]
[White "Grabuzova, Tatiana"]
[Black "Decuigniere, Tom"]
[Result "1-0"]
[ECO "E00"]
[WhiteElo "2202"]
[BlackElo "2413"]
[Annotator "RC"]
[PlyCount "123"]
[EventDate "2023.12.02"]
[EventType "swiss"]
[EventCountry "ESP"]
[SourceTitle "playchess.com"]
[Source "ChessBase"]
[SourceQuality "1"]
[TimeControl "5400+30"]

1. d4 {[%emt 0:00:03]} Nf6 {[%emt 0:02:09]} 2. c4 {[%emt 0:00:15]} e6 {[%emt 0:00:07]} 3. g3 {[%emt 0:00:05]} Bb4+ {[%emt 0:00:44]} 4. Bd2 {[%emt 0:00:10]} Qe7 {[%emt 0:00:08]} 5. Bg2 {[%emt 0:00:35]} Nc6 {[%emt 0:00:48]} 6. e3 {[%emt 0:05:01]} e5 {[%emt 0:00:24]} 7. d5 {[%emt 0:01:35]} Bxd2+ {[%emt 0:00:22]} 8. Qxd2 {[%emt 0:00:57]} Nb8 {[%emt 0:00:10]} 9. d6 {[%emt 0:04:59]} Qxd6 {[%emt 0:05:17]} 10. Qxd6 {[%emt 0:00:56]} cxd6 {[%emt 0:00:04]} 11. Nc3 {[%emt 0:00:46]} Na6 {[%emt 0:04:54]} 12. Nge2 {[%emt 0:19:22]} Nc7 {[%emt 0:05:29]} 13. O-O {[%emt 0:00:54]} Rb8 {[%emt 0:03:05]} 14. Rac1 {[%emt 0:10:55]} Ke7 {[%emt 0:08:14]} 15. Rfd1 {[%emt 0:10:32]} b5 {[%emt 0:05:12]} 16. cxb5 {[%emt 0:02:43]} Nxb5 {[%emt 0:00:08]} 17. Nd5+ {[%emt 0:04:04]} Nxd5 {[%emt 0:01:43]} 18. Bxd5 {[%emt 0:00:05]} Ba6 {[%emt 0:21:30]} 19. a4 {[%emt 0:02:24]} Nc7 {[%emt 0:01:03]} 20. Rxc7 {[%emt 0:00:16]} Bxe2 {[%emt 0:00:02]} 21. Rd2 {[%emt 0:00:12]} Bg4 {[%emt 0:00:31]} 22. Rxa7 {[%emt 0:05:13]} Rhc8 {[%emt 0:00:21]} 23. Kg2 {[%emt 0:01:21]} Rc5 {[%emt 0:06:56]} 24. Ra6 {[%emt 0:04:50]} Rb4 {[%emt 0:01:59]} 25. h3 {[%emt 0:05:50]} Bf5 {[%emt 0:05:42]} 26. Bf3 {[%emt 0:07:47]} d5 {[%emt 0:02:24]} 27. Rxd5 {[%emt 0:03:04]} Rxd5 {[%emt 0:00:04]} 28. Bxd5 {[%emt 0:00:06]} Rxb2 {[%emt 0:00:02]} 29. a5 {[%emt 0:02:28]} Be6 {[%emt 0:05:02]} 30. Bxe6 {[%emt 0:00:31]} fxe6 {[%emt 0:02:31]} 31. Ra8 {[%emt 0:00:12]} Ra2 {[%emt 0:00:08]} 32. a6 {[%emt 0:00:30]} h5 {[%emt 0:00:59]} 33. Kf3 {[%emt 0:04:39]} d5 {[%emt 0:00:38]} 34. h4 {[%emt 0:01:38]} Kf6 {[%emt 0:02:46]} 35. g4 {[%emt 0:00:30]} hxg4+ {[%emt 0:02:50]} 36. Kxg4 {[%emt 0:00:31]} Kf7 {[%emt 0:03:28]} 37. a7 {[%emt 0:00:58]} d4 {[%emt 0:01:07]} 38. exd4 {[%emt 0:00:20]} exd4 {[%emt 0:00:04]} 39. Kf3 {[%emt 0:01:15]} d3 {[%emt 0:00:36]} 40. Ke3 {[%emt 0:00:42]} d2 {[%emt 0:00:39]} 41. Ke2 {[%emt 0:00:03]} Kg6 {[%emt 0:05:10]} 42. f4 {[%emt 0:00:08]} Kh7 {[%emt 0:02:15]} 43. h5 {[%emt 0:00:14]} Ra4 {[%emt 0:02:00]} 44. Kxd2 {[%emt 0:00:06]} Ra3 {[%emt 0:00:03]} 45. Kc2 {[%emt 0:00:38]} Ra4 {[%emt 0:01:06]} 46. Kd3 {[%emt 0:00:10]} Ra3+ {[%emt 0:00:54]} 47. Ke4 {[%emt 0:00:07]} Ra5 {[%emt 0:00:07]} 48. Kd4 {[%emt 0:00:06]} Rd5+ {[%emt 0:00:35]} 49. Kc4 {[%emt 0:00:09]} Ra5 {[%emt 0:01:43]} 50. Kb4 {[%emt 0:00:06]} Ra1 {[%emt 0:00:26]} 51. Kb5 {[%emt 0:00:06]} Ra2 {[%emt 0:00:26]} 52. Kb6 {[%emt 0:00:14]} Rb2+ {[%emt 0:00:04]} 53. Kc6 {[%emt 0:00:07]} Ra2 {[%emt 0:00:49]} 54. Kd6 {[%emt 0:00:06]} Ra6+ {[%emt 0:00:53]} 55. Ke7 {[%emt 0:00:09]} Ra5 {[%emt 0:00:17]} 56. Kxe6 {[%emt 0:00:07]} Ra6+ {[%emt 0:00:01]} 57. Ke7 {[%emt 0:00:18]} Ra1 {[%emt 0:00:39]} 58. f5 {[%emt 0:00:41]} Re1+ {[%emt 0:00:43]} 59. Kf7 {[%emt 0:01:14]} Ra1 {[%emt 0:00:04]} 60. h6 {[%emt 0:00:45]} gxh6 {[%emt 0:00:30]} 61. f6 {[%emt 0:00:05]} h5 {[%emt 0:00:21]} 62. Ke7 {[%emt 0:00:10]} 1-0

[Event "XX Gran Hotel Bali-A 2023"]
[Site "Benidorm"]
[Date "2023.12.08"]
[Round "9.9"]
[White "Donate Moreno, Silvia"]
[Black "Luque Saiz, Andres"]
[Result "0-1"]
[ECO "B28"]
[WhiteElo "2156"]
[BlackElo "2349"]
[Annotator "RC"]
[PlyCount "98"]
[EventDate "2023.12.02"]
[EventType "swiss"]
[EventCountry "ESP"]
[SourceTitle "playchess.com"]
[Source "ChessBase"]
[SourceQuality "1"]
[TimeControl "5400+30"]

1. e4 {[%emt 0:00:02]} c5 {[%emt 0:06:30]} 2. Nf3 {[%emt 0:00:17]} a6 {[%emt 0:00:28]} 3. c3 {[%emt 0:00:18]} d5 {[%emt 0:01:15]} 4. exd5 {[%emt 0:01:58]} Qxd5 {[%emt 0:00:06]} 5. d4 {[%emt 0:00:06]} e6 {[%emt 0:07:03]} 6. Be3 {[%emt 0:01:26]} cxd4 {[%emt 0:04:30]} 7. cxd4 {[%emt 0:00:39]} Nf6 {[%emt 0:03:41]} 8. Nc3 {[%emt 0:01:17]} Qd8 {[%emt 0:02:02]} 9. Rc1 {[%emt 0:01:49]} b5 {[%emt 0:09:35]} 10. Qb3 {[%emt 0:04:25]} Be7 {[%emt 0:03:44]} 11. Ne5 {[%emt 0:02:18]} O-O {[%emt 0:00:43]} 12. Be2 {[%emt 0:02:20]} Bb7 {[%emt 0:00:42]} 13. O-O {[%emt 0:01:08]} Nc6 {[%emt 0:17:25]} 14. Rfd1 {[%emt 0:03:17]} Rc8 {[%emt 0:01:39]} 15. Nxc6 {[%emt 0:19:59]} Bxc6 {[%emt 0:00:22]} 16. a4 {[%emt 0:01:28]} b4 {[%emt 0:13:03]} 17. Bxa6 {[%emt 0:06:50]} bxc3 {[%emt 0:00:11]} 18. Bxc8 {[%emt 0:00:05]} Qxc8 {[%emt 0:00:04]} 19. Qxc3 {[%emt 0:00:45]} Bd7 {[%emt 0:00:47]} 20. Qxc8 {[%emt 0:00:47]} Bxc8 {[%emt 0:00:04]} 21. Bg5 {[%emt 0:07:34]} Bd7 {[%emt 0:01:21]} 22. Rc7 {[%emt 0:02:06]} Bd6 {[%emt 0:00:47]} 23. Ra7 {[%emt 0:03:27]} Bb8 {[%emt 0:04:02]} 24. Ra6 {[%emt 0:05:43]} Bc8 {[%emt 0:09:22]} 25. Rc6 {[%emt 0:01:30]} Nd5 {[%emt 0:01:06]} 26. b3 {[%emt 0:04:33]} Bd7 {[%emt 0:01:56]} 27. Rc4 {[%emt 0:02:34]} Bd6 {[%emt 0:01:59]} 28. Bd2 {[%emt 0:01:10]} Rb8 {[%emt 0:00:50]} 29. Rb1 {[%emt 0:00:31]} Kf8 {[%emt 0:00:07]} 30. g3 {[%emt 0:02:06]} Ke7 {[%emt 0:02:27]} 31. f3 {[%emt 0:00:48]} Rb7 {[%emt 0:03:07]} 32. Kf2 {[%emt 0:01:02]} Nb6 {[%emt 0:02:35]} 33. Rcc1 {[%emt 0:00:18]} Ba3 {[%emt 0:00:20]} 34. Rd1 {[%emt 0:03:56]} Nd5 {[%emt 0:00:43]} 35. Bc1 {[%emt 0:04:29]} Bb4 {[%emt 0:00:33]} 36. Bb2 {[%emt 0:05:04]} f6 {[%emt 0:01:27]} 37. Rbc1 {[%emt 0:02:45]} Bd6 {[%emt 0:01:05]} 38. Rd3 {[%emt 0:03:51]} Be8 {[%emt 0:00:08]} 39. Rc8 {[%emt 0:01:19]} Nb6 {[%emt 0:00:32]} 40. Rxe8+ {[%emt 0:02:05]} Kxe8 {[%emt 0:00:07]} 41. Bc1 {[%emt 0:00:48]} Nd5 {[%emt 0:00:33]} 42. Bd2 {[%emt 0:01:05]} Kd7 {[%emt 0:00:23]} 43. Ke2 {[%emt 0:00:33]} Bb4 {[%emt 0:00:32]} 44. Bxb4 {[%emt 0:00:49]} Nxb4 {[%emt 0:00:53]} 45. Rd2 {[%emt 0:00:05]} Kd6 {[%emt 0:00:23]} 46. g4 {[%emt 0:01:18]} Kd5 {[%emt 0:00:29]} 47. h4 {[%emt 0:00:32]} Nc6 {[%emt 0:00:12]} 48. Kf2 {[%emt 0:00:42]} Nxd4 {[%emt 0:00:21]} 49. a5 {[%emt 0:00:12]} Rxb3 {[%emt 0:00:16]} 0-1

[Event "XX Gran Hotel Bali-A 2023"]
[Site "Benidorm"]
[Date "2023.12.08"]
[Round "9.10"]
[White "Gomez Dieguez, David"]
[Black "Mingarro Carceller, Sergi"]
[Result "1-0"]
[ECO "B32"]
[WhiteElo "2303"]
[BlackElo "2232"]
[Annotator "RC"]
[PlyCount "47"]
[EventDate "2023.12.02"]
[EventType "swiss"]
[EventCountry "ESP"]
[SourceTitle "playchess.com"]
[Source "ChessBase"]
[SourceQuality "1"]
[TimeControl "5400+30"]

1. e4 {[%emt 0:00:01]} c5 {[%emt 0:05:42]} 2. Nf3 {[%emt 0:00:05]} Nc6 {[%emt 0:00:08]} 3. d4 {[%emt 0:00:09]} cxd4 {[%emt 0:00:10]} 4. Nxd4 {[%emt 0:00:03]} e5 {[%emt 0:00:10]} 5. Nb5 {[%emt 0:03:16]} d6 {[%emt 0:00:09]} 6. N1c3 {[%emt 0:01:50]} a6 {[%emt 0:00:10]} 7. Na3 {[%emt 0:00:04]} Be6 {[%emt 0:00:10]} 8. Nc4 {[%emt 0:00:30]} Rb8 {[%emt 0:00:09]} 9. Nd5 {[%emt 0:00:04]} Bxd5 {[%emt 0:00:34]} 10. exd5 {[%emt 0:00:04]} Nce7 {[%emt 0:00:10]} 11. a4 {[%emt 0:00:52]} Nf6 {[%emt 0:00:24]} 12. g4 {[%emt 0:00:06]} h6 {[%emt 0:00:46]} 13. h4 {[%emt 0:18:34]} Rc8 {[%emt 0:00:35]} 14. Rh3 {[%emt 0:06:54]} Nexd5 {[%emt 0:03:05]} 15. a5 {[%emt 0:04:02]} Qd7 {[%emt 0:18:18]} 16. Rg3 {[%emt 0:05:46]} Rc5 {[%emt 0:05:11]} 17. b4 {[%emt 0:09:58]} Nxb4 {[%emt 0:11:41]} 18. Ba3 {[%emt 0:00:16]} d5 {[%emt 0:13:30]} 19. Bxb4 {[%emt 0:20:48]} Rxc4 {[%emt 0:00:13]} 20. Bxc4 {[%emt 0:00:05]} Bxb4+ {[%emt 0:00:07]} 21. c3 {[%emt 0:00:02]} Bc5 {[%emt 0:01:01]} 22. Bd3 {[%emt 0:02:29]} e4 {[%emt 0:01:53]} 23. Bc2 {[%emt 0:00:06]} g5 {[%emt 0:01:51]} 24. Ba4 {[%emt 0:00:08]} 1-0

[Event "XX Gran Hotel Bali-A 2023"]
[Site "Benidorm"]
[Date "2023.12.08"]
[Round "9.11"]
[White "Ambartsumian, Tyhran"]
[Black "Utsab Chatterjee"]
[Result "1-0"]
[ECO "B51"]
[WhiteElo "2138"]
[BlackElo "2289"]
[Annotator "RC"]
[PlyCount "57"]
[EventDate "2023.12.02"]
[EventType "swiss"]
[EventCountry "ESP"]
[SourceTitle "playchess.com"]
[Source "ChessBase"]
[SourceQuality "1"]
[TimeControl "5400+30"]

1. e4 {[%emt 0:00:03]} c5 {[%emt 0:02:37]} 2. Nf3 {[%emt 0:00:11]} d6 {[%emt 0:00:07]} 3. Bb5+ {[%emt 0:00:08]} Nd7 {[%emt 0:00:18]} 4. Ba4 {[%emt 0:00:07]} Ngf6 {[%emt 0:00:26]} 5. O-O {[%emt 0:00:08]} e6 {[%emt 0:00:56]} 6. Re1 {[%emt 0:00:20]} Be7 {[%emt 0:00:16]} 7. c3 {[%emt 0:00:57]} a6 {[%emt 0:00:59]} 8. d4 {[%emt 0:00:11]} O-O {[%emt 0:00:16]} 9. Nbd2 {[%emt 0:04:11]} b5 {[%emt 0:00:40]} 10. Bc2 {[%emt 0:00:08]} e5 {[%emt 0:00:09]} 11. Nf1 {[%emt 0:02:17]} Qc7 {[%emt 0:01:54]} 12. Ng3 {[%emt 0:07:05]} Re8 {[%emt 0:00:10]} 13. a4 {[%emt 0:09:10]} Rb8 {[%emt 0:02:29]} 14. a5 {[%emt 0:22:04]} Bf8 {[%emt 0:06:01]} 15. Nf5 {[%emt 0:04:07]} cxd4 {[%emt 0:05:17]} 16. cxd4 {[%emt 0:01:44]} exd4 {[%emt 0:00:08]} 17. N3xd4 {[%emt 0:03:08]} Bb7 {[%emt 0:04:43]} 18. Bf4 {[%emt 0:23:22]} Ne5 {[%emt 0:15:21]} 19. Bg5 {[%emt 0:05:06]} Nfd7 {[%emt 0:08:35]} 20. Ra3 {[%emt 0:00:34]} Ng6 {[%emt 0:06:16]} 21. h4 {[%emt 0:01:31]} d5 {[%emt 0:01:03]} 22. Rg3 {[%emt 0:01:47]} dxe4 {[%emt 0:08:24]} 23. h5 {[%emt 0:01:34]} Qe5 {[%emt 0:00:29]} 24. hxg6 {[%emt 0:00:51]} hxg6 {[%emt 0:00:26]} 25. Nh4 {[%emt 0:01:21]} Nf6 {[%emt 0:04:26]} 26. Bxf6 {[%emt 0:02:47]} gxf6 {[%emt 0:14:21]} 27. Bb3 {[%emt 0:00:25]} Bd5 {[%emt 0:00:07]} 28. Nc6 {[%emt 0:00:57]} Bxc6 {[%emt 0:00:28]} 29. Nxg6 {[%emt 0:00:09]} 1-0